{"text_format":"1","workbook":"xlsx","n_sheets":6,"sheets":["Form1-1","Form1-2","Form1-3 SIT OFFICE USE ONLY","Form1-4 SIT OFFICE USE ONLY","Form1-5 SIT OFFICE USE ONLY","Form1-6 SIT OFFICE USE ONLY"],"not_rendered":{"charts":4,"images":14,"macros":1,"external_links":0,"defined_names":45,"comments":0,"pivot_tables":0},"unopened":[],"bounds":{"document_bytes":16777216,"sheet_cells":100000,"rows_first":2000,"rows_last":500,"rows_between":2000,"halvings":0,"cell_chars":16384,"cell_head_chars":4096},"cells_cut":0,"cells_raw":0,"read":"whole","date_system":"1900"}

{"sheet":"Form1-1","index":0,"n_rows":98,"n_cols":83,"rows_kept":98,"cut":false,"hidden":false,"merged":[[37,4,37,8],[7,11,7,73],[9,4,9,7],[10,4,10,7],[11,4,11,7],[13,4,13,8],[14,4,14,8],[16,7,16,8],[18,7,18,8],[21,4,21,8],[31,4,31,8],[36,4,36,8],[26,4,26,6],[27,4,27,6],[17,4,17,6],[3,8,10,9],[41,2,45,2],[41,6,41,7],[42,3,44,3],[42,4,44,4],[42,6,42,7],[43,5,43,8],[44,5,44,8],[45,6,45,7],[51,2,54,2],[51,6,51,7],[52,6,52,7],[53,6,53,7],[54,6,54,7],[46,6,46,7],[48,4,49,5],[48,6,49,8],[50,4,54,5],[50,6,50,7],[73,5,73,6],[75,5,75,6],[76,4,76,7],[78,5,78,6],[56,4,57,4],[56,5,56,6],[56,7,56,8],[57,5,57,6],[57,7,57,8],[58,4,59,4],[58,5,58,6],[58,7,58,8],[59,5,59,6],[59,7,59,8],[82,2,82,3],[82,4,82,7],[85,4,85,7],[86,4,86,7],[93,4,94,8],[8,37,8,39],[97,4,97,8],[89,4,90,7],[89,8,90,8],[91,4,91,7],[81,5,81,6],[79,4,79,7],[64,4,64,5],[66,4,66,5],[68,4,68,5],[60,4,61,4],[60,5,60,6],[60,7,60,8],[61,5,61,6],[61,7,61,8],[71,2,71,8]]}
["2018-09-28",null,"SHIBAURA INSTITUTE OF TECHNOLOGY",null,null,null,null,null,"FORM1"]
[null,null,"Application Form for Research Exchange Program 2018/2019"]
[]
[null,null,"INSTRUCTIONS"]
[null,null,"●The application form should be typewritten except applicant's signature."]
[null,null,"●Numbers should be in Arabic figures. "]
[null,null,"●Proper nouns should be written in full, and not be abbreviated."]
[0,null,null,null,null,null,null,null,null,null,null,"Do not delete these columns."]
[null,null,"1. Full Name *please provide as shown in the passport 〔in Roman block capitals〕",null,null,null,null,null,null,null,null,"Month","Day","Year","Year","Please choose one",{"$f":"D10","v":"First name"},{"$f":"D11","v":"Last name"},{"$f":"D12","v":"Middle name"},{"$f":"MID(C14,3,333)","v":" Nationality"},{"$f":"MID(C15,3,333)","v":" Gender"},{"$f":"SUBSTITUTE(MID(C16,3,333),\"(MM/DD/YYYY)\",\"\")","v":" Date of Birth "},{"$f":"SUBSTITUTE(E17,\":\",\"\")","v":"Zip cord"},{"$f":"SUBSTITUTE(G17,\":\",\"\")","v":"Address"},{"$f":"MID(C18,3,333)","v":" Email Address"},{"$f":"SUBSTITUTE(E19,\":\",\"\")","v":"Country code"},{"$f":"SUBSTITUTE(G19,\":\",\"\")","v":"Tel"},{"$f":"MID(C21,3,9)&\" \"&D22","v":" Passport Number"},{"$f":"LEFT(D23,15)","v":"Date of Issue  "},{"$f":"LEFT(D24,15)","v":"Date of Expiry "},{"$f":"E27","v":"Please indicate if you have dual citizenship"},{"$f":"E28","v":"In case you have it, please specify which passport you use"},"A student from Partner University of SIT","Agree to pay the Program fees",{"$f":"D37","v":"University"},{"$f":"D38","v":"Department/Major"},{"$f":"D39","v":"Present Status (Ex, 4th year of Bachelor)"},{"$f":"MID(C41,5,333)","v":"Prospective Duration for Student Exchange"},null,null,{"$f":"E49","v":"Research Theme you would like to work at SIT\n*more than 50 words"},{"$f":"G51","v":"1)"},{"$f":"G52","v":"2)"},{"$f":"G53","v":"3)"},{"$f":"G54","v":"4)"},{"$f":"G55","v":"5)"},{"$f":"E57&\"(\"&F57&\")\"","v":"1st \nChoice(Prof Name)"},{"$f":"F58","v":"The reason why you choose the professor\n*more than 50 words"},{"$f":"E59&\"(\"&F57&\")\"","v":"2nd\nChoice(Prof Name)"},{"$f":"F60","v":"The reason why you choose the professor\n*more than 50 words"},{"$f":"E61&\"(\"&F57&\")\"","v":"3rd\nChoice(Prof Name)"},{"$f":"F62","v":"The reason why you choose the professor\n*more than 50 words"},{"$f":"E65","v":"TOEIC"},{"$f":"H64","v":"Acquisition date"},{"$f":"E66","v":"TOEFL\n*Choose the type of tests"},{"$f":"G64","v":"Score"},{"$f":"H64","v":"Acquisition date"},{"$f":"E67","v":"IELTS"},{"$f":"H64","v":"Acquisition date"},{"$f":"E68","v":"Others"},{"$f":"G64","v":"Score"},{"$f":"H64","v":"Acquisition date"},{"$f":"E69","v":"English is my 1st language"},{"$f":"C74","v":"Self"},{"$f":"C76","v":"Support from family and relatives"},{"$f":"MID(C77,13,333)","v":"Relationship with the applicant"},{"$f":"C79","v":"Scholarship(If any)"},{"$f":"C80","v":"Organization which provide the scholarship "},{"$f":"C82","v":"Others"},{"$f":"C83","v":"Source of the fund"},{"$f":"E86","v":"Please indicate if you are planning to apply for SIT scholarship?"},{"$f":"E87","v":"If \"Yes\", would you still intend to come to SIT in case you are not the successful candidate?\nNote : This answer will not influence on the screening result."},{"$f":"E90","v":"Are you required to apply for VISA for visiting Japan?"},{"$f":"E92","v":"If you need VISA when entering Japan, please indicate which embassy you will visit.\nex. Consulate-General of Japan in Los Angeles"},{"$f":"C98","v":"17. NOTE(If any)"}]
[null,null,null,"First name",null,null,null,null,null,null,null,"01","01",1976,2018,"YES",{"$f":"E10","v":0},{"$f":"E11","v":0},{"$f":"E12","v":0},{"$f":"E14","v":0},{"$f":"E15","v":0},{"$f":"DATE(G16,E16,F16)","v":{"$error":"#VALUE!"}},{"$f":"F17","v":0},{"$f":"H17","v":0},{"$f":"E18","v":0},{"$f":"F19","v":0},{"$f":"H19","v":0},{"$f":"E22","v":0},{"$f":"DATE(G23,E23,F23)","v":{"$error":"#VALUE!"}},{"$f":"DATE(G24,E24,F24)","v":{"$error":"#VALUE!"}},{"$f":"H27","v":"Please choose one"},{"$f":"H28","v":0},true,true,{"$f":"E37","v":0},{"$f":"E38","v":0},{"$f":"E39&H39","v":"--"},{"$f":"F45","v":{"$error":"#VALUE!"}},{"$f":"DATE(I47,F47,G47)","v":{"$error":"#VALUE!"}},{"$f":"DATEDIF(AL10,AM10,\"D\")","v":{"$error":"#VALUE!"}},{"$f":"G49","v":0},{"$f":"I51","v":0},{"$f":"I52","v":0},{"$f":"I53","v":0},{"$f":"I54","v":0},{"$f":"I55","v":0},{"$f":"H57","v":0},{"$f":"H58","v":0},{"$f":"H59","v":0},{"$f":"H60","v":0},{"$f":"H61","v":0},{"$f":"H62","v":0},{"$f":"G65","v":0},{"$f":"H65","v":"00:00:00"},{"$f":"F66","v":"-"},{"$f":"G66","v":0},{"$f":"H66","v":"00:00:00"},{"$f":"G67","v":0},{"$f":"H67","v":"00:00:00"},{"$f":"F68","v":"-"},{"$f":"G68","v":0},{"$f":"H68","v":"00:00:00"},{"$f":"G69","v":0},{"$f":"F74","v":0},{"$f":"F76","v":0},{"$f":"E77","v":0},{"$f":"F79","v":0},{"$f":"E80","v":0},{"$f":"F82","v":0},{"$f":"E83","v":0},{"$f":"I86","v":"Please choose one"},{"$f":"I87","v":"Please choose one"},{"$f":"I90","v":"Please choose one"},{"$f":"I92","v":0},{"$f":"E98","v":0},{"$f":"E10&\" \"&E12&\" \"&E11","v":"  "}]
[null,null,null,"Last name",null,null,null,null,null,null,null,"02","02",1977,2019,"NO"]
[null,null,null,"Middle name",null,null,null,null,null,null,null,"03","03",1978,2020,"Please choose one"]
[null,null,null,null,null,null,null,null,null,null,null,"04","04",1979,2021,"I don't have dual citizenship"]
[null,null,"2. Nationality",null,null,null,null,null,null,null,null,"05","05",1980,"Year","I have dual citizenship"]
[null,null,"3. Gender",null,null,null,null,null,null,null,null,"06","06",1981]
[null,null,"4. Date of Birth (MM/DD/YYYY)",null,"Month","Day","Year",null,null,null,null,"07","07",1982]
[null,null,"5. Current Home Address",null,"Zip cord:",null,"Address:",null,null,null,null,"08","08",1983]
[null,null,"6. Email Address",null,null,null,null,null,null,null,null,"09","09",1984]
[null,null,"7. Phone Number",null,"Country code:",null,"Tel:",null,null,null,null,"10","10",1985]
[null,null,null,null,null,null,null,null,null,null,null,"11","11",1986]
[null,null,"8. Passport Information",null,null,null,null,null,null,null,null,"12","12",1987]
[null,null,null,"Number",null,null,null,null,null,null,null,null,13,1988]
[null,null,null,"Date of Issue   (MM/DD/YYYY)","Month","Day","Year",null,null,null,null,null,14,1989]
[null,null,null,"Date of Expiry  (MM/DD/YYYY)","Month","Day","Year",null,null,null,null,null,15,1990]
[null,null,null,null,null,null,null,null,null,null,null,null,16,1991]
[null,null,null,null,"*A participant who has dual citizenship should choose and use only one passport. ",null,null,null,null,null,null,null,17,1992]
[null,null,null,null,"Please indicate if you have dual citizenship",null,null,"Please choose one",null,null,null,null,18,1993]
[null,null,null,null,"In case you have it, please specify which passport you use",null,null,null,null,null,null,null,19,1994]
[null,null,null,null,null,null,null,null,null,null,null,null,20,1995]
[null,null,null,null,null,null,null,null,null,null,null,null,21,1996]
[null,null,"9. Name of University and Department  *please provide your home university.",null,null,null,null,null,null,null,null,null,22,1997]
[null,null,null,null,"A participant who does NOT belong to Partner University of SIT will be charged for the program fees. Please confirm with your University international coordinator about a partnership with SIT and the fees for this program.",null,null,null,null,null,null,null,23,1998]
[null,null,null,null,null,null,null,null,null,null,null,null,24,1999]
[null,null,null,null,null,null,null,null,null,null,null,null,25,2000]
[null,null,null,null,null,null,null,null,null,null,null,null,26,2001]
[null,null,null,null,null,null,null,null,null,null,null,null,27,2002]
[null,null,null,"University",null,null,null,null,null,null,null,null,28,2003]
[null,null,null,"Department/Major",null,null,null,null,null,null,null,null,29,2004]
[null,null,null,"Present Status (Ex, 4th year of Bachelor)","-",null,"School Year","-",null,null,null,null,30,2005]
[null,null,null,null,null,null,null,null,null,null,null,null,31,2006]
[null,null,"10. Prospective Duration for Student Exchange",null,null,null,null,null,null,null,null,null,null,2007,null,"1st Monday",1,{"$f":"VLOOKUP(G43,P41:Q45,2,FALSE)","v":{"$error":"#N/A"}}]
[null,null,"Note: The program end date can be freely set, however the first day of the program must be Monday. For the program start date, please fill in year, month and which week number of Monday, the actual date will automatically be reflected. Plesae be aware that sometimes the date of the next month will be displayed depending on the week number you selected, ",null,null,"Month","Week Number",null,"Year",null,"月",null,null,2008,null,"2nd Monday",2,null,null,null,null,null,null,null,null,null,null,null,null,null,null,null,null,null,null,null,null,null,null,null,null,null,null,null,null,null,null,null,null,null,null,null,null,null,null,null,null,null,null,null,null,null,null,null,null,null,null,null,null,null,null,null,null,null,null,null,null,null,null,null,"1st Monday",1,{"$f":"VLOOKUP(G43,CC42:CD46,2,FALSE)","v":{"$error":"#N/A"}}]
[null,null,null,"FROM","MM/DD/YYYY","Month","Week",null,"Year",null,null,null,null,2009,null,"3rd Monday",3,null,null,null,null,null,null,null,null,null,null,null,null,null,null,null,null,null,null,null,null,null,null,null,null,null,null,null,null,null,null,null,null,null,null,null,null,null,null,null,null,null,null,null,null,null,null,null,null,null,null,null,null,null,null,null,null,null,null,null,null,null,null,null,"2nd Monday",2]
[null,null,null,null,null,"Following date is your actual start date of the program",null,null,null,null,null,null,null,2010,null,"4th Monday",4,null,null,null,null,null,null,null,null,null,null,null,null,null,null,null,null,null,null,null,null,null,null,null,null,null,null,null,null,null,null,null,null,null,null,null,null,null,null,null,null,null,null,null,null,null,null,null,null,null,null,null,null,null,null,null,null,null,null,null,null,null,null,null,"3rd Monday",3]
[null,null,null,null,null,{"$f":"DATE(I43,F43,CE42*7-WEEKDAY(DATE(I43,F43,-FIND(K42,\"月火水木金土日\")+1),3))","v":{"$error":"#VALUE!"}},null,null,null,null,null,null,null,2011,null,"5th Monday",5,null,null,null,null,null,null,null,null,null,null,null,null,null,null,null,null,null,null,null,null,null,null,null,null,null,null,null,null,null,null,null,null,null,null,null,null,null,null,null,null,null,null,null,null,null,null,null,null,null,null,null,null,null,null,null,null,null,null,null,null,null,null,null,"4th Monday",4]
[null,null,null,null,null,"Month","Day",null,"Year",null,null,null,null,2012,null,null,null,null,null,null,null,null,null,null,null,null,null,null,null,null,null,null,null,null,null,null,null,null,null,null,null,null,null,null,null,null,null,null,null,null,null,null,null,null,null,null,null,null,null,null,null,null,null,null,null,null,null,null,null,null,null,null,null,null,null,null,null,null,null,null,"5th Monday",5]
[null,null,null,"TO","MM/DD/YYYY","Month","Day",null,"Year",null,null,null,null,2013]
[null,null,null,null,null,null,null,null,null,null,null,null,null,2014]
[null,null,"11. Laboratory Selection\nChoose 3 labs from the following URL",null,"Research Theme you would like to work at SIT\n*more than 50 words",null,null,null,null,null,null,null,null,2015]
[null,null,"https://shibaura.pure.elsevier.com/",null,null,null,null,null,null,null,null,null,null,2016]
[null,null,null,null,"Research topics of interest\n\nPlease rate how much you are into the topic with the number. 0 to 5 and 0 is none and 5 is very much.\n\nex.Mechatronics/Electronics/Industrial Design/etc.",null,"1)",null,0,null,null,null,null,2017]
[null,null,"Note: An appropriate lab would be chosen for you based on your request; however, it might be different from your wish.",null,null,null,"2)",null,0,null,null,null,null,2018]
[null,null,null,null,null,null,"3)",null,0,null,null,null,null,2019]
[null,null,null,null,null,null,"4)",null,0,null,null,null,null,2020]
[null,null,null,null,null,null,"5)",null,0,null,null,null,null,2021]
[null,null,null,null,null,null,null,null,null,null,null,null,null,2022]
[null,null,null,null,"1st \nChoice","Prof Name",null,null,null,null,null,null,null,2023]
[null,null,null,null,null,"The reason why you choose the professor\n*more than 50 words",null,null,null,null,null,null,null,2024]
[null,null,null,null,"2nd\nChoice","Prof Name",null,null,null,null,null,null,null,2025]
[null,null,null,null,null,"The reason why you choose the professor\n*more than 50 words",null,null,null,null,null,null,null,2026]
[null,null,null,null,"3rd\nChoice","Prof Name",null,null,null,null,null,null,null,2027]
[null,null,null,null,null,"The reason why you choose the professor\n*more than 50 words",null,null,null,null,null,null,null,2028]
[null,null,null,null,null,null,null,null,null,null,null,null,null,2029]
[null,null,"12. English Skills",null,null,null,"Score","Acquisition date",null,null,null,null,null,2030]
[null,null,null,null,"TOEIC",null,null,null,null,null,null,null,null,"Year"]
[null,null,null,null,"TOEFL\n*Choose the type of tests","-"]
[null,null,null,null,"IELTS"]
[null,null,null,null,"Others","-"]
[null,null,null,null,"English is my 1st language"]
[]
[null,null,"13. Sources of financial support while in Japan per month(average)            "]
[null,null,"Please note that the average monthly cost of living in Kanto region, which includes Tokyo and Saitama areas where SIT locates is JPY151,000. You can find the detailed information in the following URL."]
[null,null,"http://www.g-studyinjapan.jasso.go.jp/en/modules/pico/index.php?content_id=16"]
[null,null,"Self",null,"JPY",null,null,"(per month)"]
[]
[null,null,"Support from family and relatives",null,"JPY",null,null,"(per month)"]
[null,null,"            Relationship with the applicant",null,null,null,null,null,"ex) Father, Mother.."]
[]
[null,null,"Scholarship(If any)",null,"JPY",null,null,"(per month)"]
[null,null,"Organization which provide the scholarship ",null,null,null,null,null,"ex) Foreign government, Japanese government.."]
[]
[null,null,"Others",null,"JPY",null,null,"(Total Amount)"]
[null,null,"Source of the fund",null,null,null,null,null,"ex) Family savings.."]
[]
[null,null,"14. Scholarship from SIT"]
[null,null,null,null,"Please indicate if you are planning to apply for SIT scholarship?",null,null,null,"Please choose one"]
[null,null,null,null,"If \"Yes\", would you still intend to come to SIT in case you are not the successful candidate?\nNote : This answer will not influence on the screening result.",null,null,null,"Please choose one"]
[]
[null,null,"15. VISA information"]
[null,null,"Note: Please check from the below URL if you need VISA when you enter Japan.\n",null,"Are you required to apply for VISA for visiting Japan?",null,null,null,"Please choose one"]
[null,null,"http://www.mofa.go.jp/j_info/visit/visa/short/novisa.html"]
[null,null,null,null,"If you need VISA when entering Japan, please indicate which embassy you will visit.\nex. Consulate-General of Japan in Los Angeles"]
[]
[null,null,"16. Useful Information",null,"Before coming to Japan, please read over \"Gate way to study in Japan\" in the following URL. You can select your language to read the guidebook. "]
[]
[null,null,null,null,"http://www.g-studyinjapan.jasso.go.jp/en/modules/pico/index.php?cat_id=19"]
[]
[null,null,"17. NOTE(If any)"]

{"sheet":"Form1-2","index":1,"n_rows":101,"n_cols":80,"rows_kept":101,"cut":false,"hidden":false,"merged":[[92,2,93,2],[94,4,94,7],[84,4,84,7],[87,4,87,7],[88,4,88,7],[96,4,97,8],[100,4,100,8],[91,4,93,7],[91,8,93,8],[75,5,75,6],[77,5,77,6],[78,4,78,7],[80,5,80,6],[81,4,81,7],[83,5,83,6],[66,4,66,5],[68,4,68,5],[70,4,70,5],[73,2,73,8],[60,4,61,4],[60,5,60,6],[60,7,60,8],[61,5,61,6],[61,7,61,8],[62,4,63,4],[62,5,62,6],[62,7,62,8],[63,5,63,6],[63,7,63,8],[58,2,59,2],[58,4,59,4],[58,5,58,6],[58,7,58,8],[59,5,59,6],[59,7,59,8],[54,2,55,2],[56,2,57,2],[56,4,56,5],[56,6,56,8],[57,4,57,5],[57,6,57,8],[47,6,47,7],[49,4,50,5],[49,6,50,8],[50,2,52,2],[51,4,53,5],[51,6,51,7],[52,6,52,7],[53,6,53,7],[38,4,38,8],[42,2,46,2],[42,6,42,7],[43,3,45,3],[43,4,45,4],[43,6,43,7],[44,5,44,8],[45,5,45,8],[46,6,46,7],[9,11,9,68],[37,4,37,8],[3,0,3,9],[11,4,11,7],[12,4,12,7],[13,4,13,7],[15,4,15,8],[16,4,16,8],[18,7,18,8],[20,7,20,8],[23,4,23,8],[32,4,32,8],[28,4,28,6],[29,4,29,6],[10,35,10,37]]}
[null,null,"SHIBAURA INSTITUTE OF TECHNOLOGY",null,null,null,null,null,"FORM1"]
[null,null,"Application Form (Architecture) for Research Exchange Program 2018"]
[]
["THIS FORM IS ONLY FOR THE STUDENT WHO WISH TO RESEARCH IN ARCHITECTURE FIELD.\nWHO IS NOT SUBJECTED, FILL OUT THE FORM1-1"]
[]
[null,null,"INSTRUCTIONS"]
[null,null,"●The application form should be typewritten except applicant's signature."]
[null,null,"●Numbers should be in Arabic figures. "]
[null,null,"●Proper nouns should be written in full, and not be abbreviated."]
[null,null,null,null,null,null,null,null,null,null,null,"Do not delete these columns."]
[null,null,"1. Full Name *please provide as shown in the passport 〔in Roman block capitals〕",null,null,null,null,null,null,null,null,"Month","Day","Year","Year","Please choose one",{"$f":"D12","v":"First name"},{"$f":"D13","v":"Last name"},{"$f":"D14","v":"Middle name"},{"$f":"MID(C16,3,333)","v":" Nationality"},{"$f":"MID(C17,3,333)","v":" Gender"},{"$f":"MID(C18,3,15)","v":" Date of Birth "},{"$f":"SUBSTITUTE(E19,\":\",\"\")","v":"Zip cord"},{"$f":"SUBSTITUTE(G19,\":\",\"\")","v":"Address"},{"$f":"MID(C20,3,333)","v":" Email Address"},{"$f":"SUBSTITUTE(E21,\":\",\"\")","v":"Country code"},{"$f":"SUBSTITUTE(G21,\":\",\"\")","v":"Tel"},{"$f":"MID(C23,3,9)&\"(\"&D24&\")\"","v":" Passport(Number)"},{"$f":"LEFT(D25,15)","v":"Date of Issue  "},{"$f":"LEFT(D26,15)","v":"Date of Expiry "},{"$f":"E29","v":"Please indicate if you have dual citizenship"},{"$f":"E30","v":"In case you have it, please specify which passport you use"},{"$f":"D38","v":"University"},{"$f":"D39","v":"Department/Major"},{"$f":"D40","v":"Present Status (Ex, 4th year of Bachelor)"},{"$f":"MID(C42,5,45)","v":"Prospective Duration for Student Exchange"},null,null,{"$f":"PROPER(E50)","v":"Research Theme You Would Like To Work At Sit\n*More Than 50 Words"},{"$f":"G52","v":"1)"},{"$f":"G53","v":"2)"},{"$f":"G54","v":"3)"},{"$f":"F59","v":"Prof Name"},{"$f":"F60","v":"The reason why you choose the professor\n*more than 50 words"},{"$f":"F61","v":"Prof Name"},{"$f":"F62","v":"The reason why you choose the professor\n*more than 50 words"},{"$f":"F63","v":"Prof Name"},{"$f":"F64","v":"The reason why you choose the professor\n*more than 50 words"},{"$f":"E67","v":"TOEIC"},{"$f":"H66","v":43371},{"$f":"E68","v":"TOEFL\n*Choose the type of tests"},{"$f":"G66","v":"Score"},{"$f":"H66","v":43371},{"$f":"E69","v":"IELTS"},{"$f":"H66","v":43371},{"$f":"E70","v":"Others"},{"$f":"G66","v":"Score"},{"$f":"H66","v":43371},{"$f":"E71","v":"English is my 1st language"},{"$f":"C76","v":"Self"},{"$f":"C78","v":"Support from family and relatives"},{"$f":"C79","v":"            Relationship with the applicant"},{"$f":"C81","v":"Scholarship(If any)"},{"$f":"C82","v":"Organization which provide the scholarship "},{"$f":"C84","v":"Others"},{"$f":"C85","v":"Source of the fund"},{"$f":"E88","v":"Please indicate if you are planning to apply for SIT scholarship?"},{"$f":"E89","v":"If \"Yes\", would you still intend to come to SIT in case you are not the successful candidate?\nNote : This answer will not influence on the screening result."},{"$f":"E92","v":"Are you required to apply for VISA for visiting Japan?"},{"$f":"E95","v":"If you need VISA when entering Japan, please indicate which embassy you will visit.\nex. Consulate-General of Japan in Los Angeles"},{"$f":"C101","v":"17. NOTE(If any)"}]
[null,null,null,"First name",null,null,null,null,null,null,null,"01","01",1976,2018,"YES",{"$f":"E12","v":0},{"$f":"E13","v":0},{"$f":"E14","v":0},{"$f":"E16","v":0},{"$f":"E17","v":"-"},{"$f":"DATE(G18,E18,F18)","v":{"$error":"#VALUE!"}},{"$f":"F19","v":0},{"$f":"H19","v":0},{"$f":"E20","v":0},{"$f":"F21","v":0},{"$f":"H21","v":0},{"$f":"E24","v":0},{"$f":"DATE(G25,E25,F25)","v":{"$error":"#VALUE!"}},{"$f":"DATE(G26,E26,F26)","v":{"$error":"#VALUE!"}},{"$f":"H29","v":"Please choose one"},{"$f":"H30","v":0},{"$f":"E38","v":0},{"$f":"E39","v":0},{"$f":"E40&H40","v":"--"},{"$f":"DATE(I44,F44,G44)","v":{"$error":"#VALUE!"}},{"$f":"DATE(H48,F48,G48)","v":{"$error":"#VALUE!"}},{"$f":"DATEDIF(AJ12,AK12,\"D\")","v":{"$error":"#VALUE!"}},{"$f":"G50","v":0},{"$f":"I52","v":0},{"$f":"I53","v":0},{"$f":"I54","v":0},{"$f":"H59","v":0},{"$f":"H60","v":0},{"$f":"H61","v":0},{"$f":"H62","v":0},{"$f":"H63","v":0},{"$f":"H64","v":0},{"$f":"G67","v":0},{"$f":"H67","v":"00:00:00"},{"$f":"F68","v":0},{"$f":"G68","v":0},{"$f":"H68","v":"00:00:00"},{"$f":"G69","v":0},{"$f":"H69","v":"00:00:00"},{"$f":"F70","v":0},{"$f":"G70","v":0},{"$f":"H70","v":"00:00:00"},{"$f":"G71","v":0},{"$f":"F76","v":0},{"$f":"F78","v":0},{"$f":"E79","v":0},{"$f":"F81","v":0},{"$f":"E82","v":0},{"$f":"F84","v":0},{"$f":"E85","v":0},{"$f":"I88","v":0},{"$f":"I89","v":0},{"$f":"I92","v":0},{"$f":"I95","v":0},{"$f":"E101","v":0},{"$f":"E12&\" \"&E14&\" \"&E13","v":"  "}]
[null,null,null,"Last name",null,null,null,null,null,null,null,"02","02",1977,2019,"NO"]
[null,null,null,"Middle name",null,null,null,null,null,null,null,"03","03",1978,"Please choose one topic which is the most suitable"]
[null,null,null,null,null,null,null,null,null,null,null,"04","04",1979,"1) Architectural design","Prof. Hidetsugu Horikoshi, Prof. Shinobu Akahori, Prof. Taira Nishizawa, Prof. Taizo Taniguchi, Prof. Osami Gota, Prof. Masahiro Harada, "]
[null,null,"2. Nationality",null,null,null,null,null,null,null,null,"05","05",1980,"2) Architectural plan","Prof. Kazunobu Minami, Prof. Ikuro Shimizu, "]
[null,null,"3. Gender",null,"-",null,null,null,null,null,null,"06","06",1981,"3) Urban design","Prof. Hidetoshi Maeda, Prof. Shimura"]
[null,null,"4. Date of Birth (MM/DD/YYYY)",null,"Month","Day","Year",null,null,null,null,"07","07",1982,"4) Urban planning","Prof. Shinozaki, Prof. Hitoshi Kuwata, Prof. Hirosuke Sato"]
[null,null,"5. Current Home Address",null,"Zip cord:",null,"Address:",null,null,null,null,"08","08",1983,"5) Architectural history","Prof. Yoko Ito, Prof. Akira Fujisawa"]
[null,null,"6. Email Address",null,null,null,null,null,null,null,null,"09","09",1984,"6) Building production","Prof. Hirotake Kanisawa, Prof. Kazuya Shide"]
[null,null,"7. Phone Number",null,"Country code:",null,"Tel:",null,null,null,null,"10","10",1985,"7) Building materials","Prof. Kenji Motohashi, Prof. Hitoshi Hamasaki"]
[null,null,null,null,null,null,null,null,null,null,null,"11","11",1986,"8) Building environment improvement","Prof. Hiroshi Furuya, Prof. Kimiya Murakami, Prof. Takashi Akimoto, Prof. Naoya Nishimura"]
[null,null,"8. Passport Information",null,null,null,null,null,null,null,null,"12","12",1987,"9) Project design","Prof. Satoru Yamashiro, Prof. Michiko Okano, Prof. Keita Aoshima"]
[null,null,null,"Number",null,null,null,null,null,null,null,null,13,1988,"10) Building structure","Prof. Katsuichiro Hijikata, Prof. Fumitoshi Kumazawa, Prof. Kenji Kabayama, Prof. Shinji Kishida, Prof. Yuki Ozawa"]
[null,null,null,"Date of Issue   (MM/DD/YYYY)","Month","Day","Year",null,null,null,null,null,14,1989,2019,"Please choose one"]
[null,null,null,"Date of Expiry  (MM/DD/YYYY)","Month","Day","Year",null,null,null,null,null,15,1990,2020,"I don't have dual citizenship"]
[null,null,null,null,null,null,null,null,null,null,null,null,16,1991,2021,"I have dual citizenship"]
[null,null,null,null,"*A participant who has dual citizenship should choose and use only one passport. ",null,null,null,null,null,null,null,17,1992,"Year"]
[null,null,null,null,"Please indicate if you have dual citizenship",null,null,"Please choose one",null,null,null,null,18,1993]
[null,null,null,null,"In case you have it, please specify which passport you use",null,null,null,null,null,null,null,19,1994]
[null,null,null,null,null,null,null,null,null,null,null,null,20,1995]
[null,null,"9. Name of University and Department  *please provide your home university.",null,null,null,null,null,null,null,null,null,21,1996]
[null,null,null,null,"A participant who does NOT belong to Partner University of SIT will be charged for the program fees. Please confirm with your University international coordinator about a partnership with SIT and the fees for this program.",null,null,null,null,null,null,null,22,1997]
[null,null,null,null,null,null,null,null,null,null,null,null,23,1998]
[null,null,null,null,null,null,null,null,null,null,null,null,24,1999]
[null,null,null,null,null,null,null,null,null,null,null,null,25,2000]
[null,null,null,null,null,null,null,null,null,null,null,null,26,2001]
[null,null,null,"University",null,null,null,null,null,null,null,null,27,2002]
[null,null,null,"Department/Major",null,null,null,null,null,null,null,null,28,2003]
[null,null,null,"Present Status (Ex, 4th year of Bachelor)","-",null,"School Year","-",null,null,null,null,29,2004]
[null,null,null,null,null,null,null,null,null,null,null,null,30,2005]
[null,null,"10. Prospective Duration for Student Exchange",null,null,null,null,null,null,null,null,null,31,2006]
[null,null,"Note: The program end date can be freely set, however the first day of the program must be Monday. For the program start date, please fill in year, month and which week number of Monday, the actual date will automatically be reflected. Plesae be aware that sometimes the date of the next month will be displayed depending on the week number you selected, ",null,null,"Month","Week Number",null,"Year",null,null,null,32,2007]
[null,null,null,"FROM","MM/DD/YYYY","Month","Week",null,"Year",null,null,null,33,2008]
[null,null,null,null,null,"Following date is your actual start date of the program",null,null,null,null,null,null,34,2009]
[null,null,null,null,null,{"$f":"DATE(I44,F44,CB47*7-WEEKDAY(DATE(I44,F44,-FIND(K66,\"月火水木金土日\")+1),3))","v":{"$error":"#VALUE!"}},null,null,null,null,null,null,35,2010]
[null,null,null,null,null,"Month","Day",null,"Year",null,null,null,null,2011,null,null,null,null,null,null,null,null,null,null,null,null,null,null,null,null,null,null,null,null,null,null,null,null,null,null,null,null,null,null,null,null,null,null,null,null,null,null,null,null,null,null,null,null,null,null,null,null,null,null,null,null,null,null,null,null,null,null,null,null,null,null,null,"1st Monday",1,{"$f":"VLOOKUP(G44,BZ47:CA66,2,FALSE)","v":{"$error":"#N/A"}}]
[null,null,null,"TO","MM/DD/YYYY","Month","Day",null,"Year",null,null,null,null,2012,null,null,null,null,null,null,null,null,null,null,null,null,null,null,null,null,null,null,null,null,null,null,null,null,null,null,null,null,null,null,null,null,null,null,null,null,null,null,null,null,null,null,null,null,null,null,null,null,null,null,null,null,null,null,null,null,null,null,null,null,null,null,null,"2nd Monday",2]
[null,null,null,null,null,null,null,null,null,null,null,null,null,2013]
[null,null,"11. Laboratory Selection\n",null,"Research Theme you would like to work at SIT\n*more than 50 words",null,null,null,null,null,null,null,null,2014]
[null,null,"Write a research theme you would like to work on and 3 keywords of interest representing essencees of your research theme and topics.",null,null,null,null,null,null,null,null,null,null,2015]
[null,null,null,null,"Research keywords of interest \n\nWrite 3 topics of interest and rate how much you are into the topic with the number. 0 to 5 and 0 is none and 5 is very much.\n\n",null,"1)",null,0,null,null,null,null,2016]
[null,null,null,null,null,null,"2)",null,0,null,null,null,null,2017]
[null,null,"Explore professor profiles with this URL below.",null,null,null,"3)",null,0,null,null,null,null,2018]
[null,null,"https://shibaura.pure.elsevier.com/",null,null,null,null,null,null,null,null,null,null,2019]
[null,null,null,null,null,null,null,null,null,null,null,null,null,2020]
[null,null,null,null,"Choose a topic in architecture field which is given from SIT. ",null,"Please choose one topic which is the most suitable",null,null,null,null,null,null,2021]
[null,null,null,null,"For laboratory matching, professor choice for the 1st to 3rd should accord with the professors who will be shown right box after choosing a topic.",null,{"$f":"IF(ISERROR(VLOOKUP(G57,$O$15:$P$24,2,FALSE)), \"\", VLOOKUP(G57,$O$15:$P$24,2,FALSE))","v":""},null,null,null,null,null,null,2022]
[null,null,"\nNote: An appropriate lab would be chosen for you based on your request; however, it might be different from your wish.",null,"1st \nChoice","Prof Name",null,null,null,null,null,null,null,2023]
[null,null,null,null,null,"The reason why you choose the professor\n*more than 50 words",null,null,null,null,null,null,null,2024]
[null,null,null,null,"2nd\nChoice","Prof Name",null,null,null,null,null,null,null,2025]
[null,null,null,null,null,"The reason why you choose the professor\n*more than 50 words",null,null,null,null,null,null,null,2026]
[null,null,null,null,"3rd\nChoice","Prof Name",null,null,null,null,null,null,null,2027]
[null,null,null,null,null,"The reason why you choose the professor\n*more than 50 words",null,null,null,null,null,null,null,2028]
[null,null,null,null,null,null,null,null,null,null,null,null,null,2029]
[null,null,"12. English Skills",null,null,null,"Score","2018-09-28",null,null,null,null,null,"Year",null,null,null,null,null,null,null,null,null,null,null,null,null,null,null,null,null,null,null,null,null,null,null,null,null,null,null,null,null,null,null,null,null,null,null,null,null,null,null,null,null,null,null,null,null,null,null,null,null,null,null,null,null,null,null,null,null,null,null,null,null,null,null,"3rd Monday",3]
[null,null,null,null,"TOEIC"]
[null,null,null,null,"TOEFL\n*Choose the type of tests"]
[null,null,null,null,"IELTS"]
[null,null,null,null,"Others"]
[null,null,null,null,"English is my 1st language"]
[]
[null,null,"13. Sources of financial support while in Japan per month(average)            "]
[null,null,"Please note that the average monthly cost of living in Kanto region, which includes Tokyo and Saitama areas where SIT locates is JPY151,000. You can find the detailed information in the following URL.",null,null,null,null,null,null,null,null,null,null,null,null,null,null,null,null,null,null,null,null,null,null,null,null,null,null,null,null,null,null,null,null,null,"I'll submit a recommendation letter from my University."]
[null,null,"http://www.g-studyinjapan.jasso.go.jp/en/modules/pico/index.php?content_id=16",null,null,null,null,null,null,null,null,null,null,null,null,null,null,null,null,null,null,null,null,null,null,null,null,null,null,null,null,null,null,null,null,null,"No, I don't have any certificate."]
[null,null,"Self",null,"JPY",null,null,"(per month)"]
[]
[null,null,"Support from family and relatives",null,"JPY",null,null,"(per month)"]
[null,null,"            Relationship with the applicant",null,null,null,null,null,"ex) Father, Mother.."]
[]
[null,null,"Scholarship(If any)",null,"JPY",null,null,"(per month)"]
[null,null,"Organization which provide the scholarship ",null,null,null,null,null,"ex) Foreign government, Japanese government.."]
[]
[null,null,"Others",null,"JPY",null,null,"(Total Amount)"]
[null,null,"Source of the fund",null,null,null,null,null,"ex) Family savings.."]
[]
[null,null,"14. Scholarship from SIT"]
[null,null,null,null,"Please indicate if you are planning to apply for SIT scholarship?"]
[null,null,null,null,"If \"Yes\", would you still intend to come to SIT in case you are not the successful candidate?\nNote : This answer will not influence on the screening result."]
[]
[null,null,"15. VISA information"]
[null,null,"Note: Please check from the below URL if you need VISA when you enter Japan.",null,"Are you required to apply for VISA for visiting Japan?"]
[null,null,"http://www.mofa.go.jp/j_info/visit/visa/short/novisa.html"]
[]
[null,null,null,null,"If you need VISA when entering Japan, please indicate which embassy you will visit.\nex. Consulate-General of Japan in Los Angeles"]
[]
[null,null,"16. Useful Information",null,"Before coming to Japan, please read over \"Gate way to study in Japan\" in the following URL. You can select your language to read the guidebook. "]
[]
[null,null,null,null,"http://www.g-studyinjapan.jasso.go.jp/en/modules/pico/index.php?cat_id=19"]
[]
[null,null,"17. NOTE(If any)"]

{"sheet":"Form1-3 SIT OFFICE USE ONLY","index":2,"n_rows":55,"n_cols":19,"rows_kept":55,"cut":false,"hidden":false,"merged":[[51,1,52,2],[51,4,51,10],[52,4,52,13],[53,1,54,2],[53,4,53,10],[54,4,54,13],[47,1,48,2],[47,3,48,13],[49,1,50,2],[49,4,49,10],[50,4,50,13],[40,4,40,5],[42,1,46,2],[42,3,42,4],[43,3,43,4],[44,3,44,4],[45,3,45,4],[46,3,46,4],[35,3,35,5],[36,3,36,5],[36,7,36,8],[36,10,36,11],[39,4,39,5],[28,10,28,13],[32,3,32,5],[32,10,32,11],[34,3,34,5],[34,7,34,8],[23,1,24,2],[23,4,23,10],[24,4,24,13],[25,1,26,2],[25,4,25,10],[26,4,26,13],[18,3,18,4],[19,1,20,2],[19,3,20,13],[21,1,22,2],[21,4,21,10],[22,4,22,13],[14,1,18,2],[14,3,14,4],[15,3,15,4],[16,3,16,4],[17,3,17,4],[8,3,8,5],[8,7,8,8],[8,10,8,11],[11,4,11,5],[12,4,12,5],[7,3,7,5],[0,10,0,13],[4,3,4,5],[4,10,4,11],[6,3,6,5],[6,7,6,8]]}
[null,"SHIBAURA INSTITUTE OF TECHNOLOGY"]
[null,"Research Exchange Student Profile"]
[]
[null,null,null,"学生氏名",null,null,null,"性別",null,null,"英語能力",null,"Score","Acquisition date"]
[null,null,null,{"$f":"CONCATENATE('Form1-1'!E10,\" \",'Form1-1'!E12,\" \",'Form1-1'!E11)","v":"  "},null,null,null,{"$f":"'Form1-1'!E15","v":0},null,null,"TOEIC",null,{"$f":"'Form1-1'!G65","v":0},{"$f":"'Form1-1'!H65","v":0}]
[null,null,null,"出身大学（専攻/学年）",null,null,null,"生年月日 (MM/DD/YYYY)",null,null,"TOEFL",{"$f":"'Form1-1'!F66","v":"-"},{"$f":"'Form1-1'!G66","v":0},{"$f":"'Form1-1'!H66","v":0}]
[null,null,null,{"$f":"'Form1-1'!E37","v":0},null,null,null,{"$f":"'Form1-1'!G16&'Form1-1'!E16&'Form1-1'!F16","v":"YearMonthDay"},null,null,"IELTS",null,{"$f":"'Form1-1'!G67","v":0},{"$f":"'Form1-1'!H67","v":0}]
[null,null,null,{"$f":"'Form1-1'!E38","v":0},null,null,null,"Email",null,null,"Others",{"$f":"'Form1-1'!F68","v":"-"},{"$f":"'Form1-1'!G68","v":0},{"$f":"'Form1-1'!H68","v":0},null,null,null,{"$f":"'Form1-1'!F45:I45","v":{"$error":"#VALUE!"}}]
[null,null,null,{"$f":"'Form1-1'!E39&'Form1-1'!H39","v":"--"},null,null,null,{"$f":"'Form1-1'!E18","v":0},null,null,"English is my 1st language",null,{"$f":"'Form1-1'!G69","v":0},null,null,null,null,{"$f":"'Form1-1'!I49&\"/\"&'Form1-1'!F49&\"/\"&'Form1-1'!G49","v":"//"}]
[]
[null,null,null,"プログラム滞在予定期間"]
[null,null,null,"FROM",{"$f":"'Form1-1'!F45","v":{"$error":"#VALUE!"}},null,null,null,null,null,null,null,null,null,null,null,null,"Days","Absense"]
[null,null,null,"TO",{"$f":"'Form1-1'!I47&\"/\"&'Form1-1'!F47&\"/\"&'Form1-1'!G47","v":"Year/Month/Day"},null,null,null,null,null,null,null,null,null,null,null,null,{"$f":"E13-E12","v":{"$error":"#VALUE!"}},{"$f":"365-R13","v":{"$error":"#VALUE!"}}]
[]
[null,"研究トピック\n（興味があるトピック）",null,{"$f":"'Form1-1'!G51","v":"1)"},null,null,null,null,null,null,null,null,null,null,null,null,null,{"$f":"D15","v":"1)"},{"$f":"#REF!","v":{"$error":"#REF!"}}]
[null,null,null,{"$f":"'Form1-1'!G52","v":"2)"},null,null,null,null,null,null,null,null,null,null,null,null,null,{"$f":"D16","v":"2)"},{"$f":"#REF!","v":{"$error":"#REF!"}}]
[null,null,null,{"$f":"'Form1-1'!G53","v":"3)"},null,null,null,null,null,null,null,null,null,null,null,null,null,"3)",{"$f":"#REF!","v":{"$error":"#REF!"}}]
[null,null,null,{"$f":"'Form1-1'!G54","v":"4)"},null,null,null,null,null,null,null,null,null,null,null,null,null,"4)",{"$f":"#REF!","v":{"$error":"#REF!"}}]
[null,null,null,{"$f":"'Form1-1'!G55","v":"5)"},null,null,null,null,null,null,null,null,null,null,null,null,null,"5)",{"$f":"#REF!","v":{"$error":"#REF!"}}]
[null,"本学で実施したい活動/研究テーマなど",null,{"$f":"'Form1-1'!G49","v":0}]
[]
[null,"第一志望",null,"氏名",{"$f":"'Form1-1'!H57","v":0}]
[null,null,null,"理由",{"$f":"'Form1-1'!H58","v":0}]
[null,"第二志望",null,"氏名",{"$f":"'Form1-1'!H59","v":0}]
[null,null,null,"理由",{"$f":"'Form1-1'!H60","v":0}]
[null,"第3志望",null,"氏名",{"$f":"'Form1-1'!H61","v":0}]
[null,null,null,"理由",{"$f":"'Form1-1'!H62","v":0}]
[]
[null,"SHIBAURA INSTITUTE OF TECHNOLOGY"]
[null,"Research Exchange Student Profile (Architecture)"]
[]
[null,null,null,"学生氏名",null,null,null,"性別",null,null,"英語能力",null,"Score","Acquisition date"]
[null,null,null,{"$f":"'Form1-2'!E12&\" \"&'Form1-2'!E14&\" \"&'Form1-2'!E13","v":"  "},null,null,null,{"$f":"'Form1-2'!E17:I17","v":0},null,null,"TOEIC",null,{"$f":"'Form1-2'!G67","v":0},{"$f":"'Form1-2'!H67","v":0}]
[null,null,null,"出身大学（専攻/学年）",null,null,null,"生年月日 (MM/DD/YYYY)",null,null,"TOEFL",{"$f":"'Form1-2'!F68","v":0},{"$f":"'Form1-2'!G68","v":0},{"$f":"'Form1-2'!H68","v":0}]
[null,null,null,{"$f":"'Form1-2'!E38","v":0},null,null,null,{"$f":"'Form1-2'!G18&\"/\"&'Form1-2'!E18&\"/\"&'Form1-2'!F18","v":"Year/Month/Day"},null,null,"IELTS",null,{"$f":"'Form1-2'!G69","v":0},{"$f":"'Form1-2'!H69","v":0}]
[null,null,null,{"$f":"'Form1-2'!E39","v":0},null,null,null,"Email",null,null,"Others",{"$f":"'Form1-2'!F70","v":0},{"$f":"'Form1-2'!G70","v":0},{"$f":"'Form1-2'!H70","v":0},null,null,null,{"$f":"#REF!&\"/\"&#REF!&\"/\"&#REF!","v":{"$error":"#REF!"}},{"$f":"R36-R37","v":{"$error":"#REF!"}}]
[null,null,null,{"$f":"'Form1-2'!E40&'Form1-2'!H40","v":"--"},null,null,null,{"$f":"'Form1-2'!E20","v":0},null,null,"English is my 1st language",null,{"$f":"'Form1-2'!G71","v":0},null,null,null,null,{"$f":"#REF!&\"/\"&#REF!&\"/\"&#REF!","v":{"$error":"#REF!"}}]
[]
[null,null,null,"プログラム滞在予定期間"]
[null,null,null,"FROM",{"$f":"'Form1-2'!F46","v":{"$error":"#VALUE!"}},null,null,null,null,null,null,null,null,null,null,null,null,"Days","Absense"]
[null,null,null,"TO",{"$f":"'Form1-2'!I48&\"/\"&'Form1-2'!F48&\"/\"&'Form1-2'!G48","v":"Year/Month/Day"},null,null,null,null,null,null,null,null,null,null,null,null,{"$f":"E41-E40","v":{"$error":"#VALUE!"}},{"$f":"365-R41","v":{"$error":"#VALUE!"}}]
[]
[null,"研究トピック\n（興味があるトピック）",null,{"$f":"'Form1-2'!G52","v":"1)"},null,null,null,null,null,null,null,null,null,null,null,null,null,{"$f":"D43","v":"1)"},{"$f":"#REF!","v":{"$error":"#REF!"}}]
[null,null,null,{"$f":"'Form1-2'!G53","v":"2)"},null,null,null,null,null,null,null,null,null,null,null,null,null,{"$f":"D44","v":"2)"},{"$f":"#REF!","v":{"$error":"#REF!"}}]
[null,null,null,{"$f":"'Form1-2'!G54","v":"3)"},null,null,null,null,null,null,null,null,null,null,null,null,null,"3)",{"$f":"#REF!","v":{"$error":"#REF!"}}]
[]
[]
[null,"本学で実施したい活動/研究テーマなど",null,{"$f":"'Form1-2'!G57","v":"Please choose one topic which is the most suitable"}]
[]
[null,"第一志望",null,"氏名",{"$f":"'Form1-2'!H59","v":0}]
[null,null,null,"理由",{"$f":"'Form1-2'!H60","v":0}]
[null,"第二志望",null,"氏名",{"$f":"'Form1-2'!H61","v":0}]
[null,null,null,"理由",{"$f":"'Form1-2'!H62","v":0}]
[null,"第3志望",null,"氏名",{"$f":"'Form1-2'!H63","v":0}]
[null,null,null,"理由",{"$f":"'Form1-2'!H64","v":0}]

{"sheet":"Form1-4 SIT OFFICE USE ONLY","index":3,"n_rows":34,"n_cols":41,"rows_kept":34,"cut":false,"hidden":false,"merged":[[45,5,47,39],[58,16,58,20],[29,14,29,32],[30,14,30,32],[32,14,32,28],[33,16,33,19],[33,22,33,24],[33,26,33,27],[33,30,33,32],[31,4,31,11],[33,4,33,11],[33,14,33,15],[33,28,33,29],[41,5,43,39],[31,14,31,28],[32,36,32,37],[28,4,28,26],[29,4,29,11],[30,4,30,11],[22,4,22,11],[22,22,22,23],[23,4,23,11],[23,22,23,23],[24,4,24,11],[24,22,24,23],[17,4,17,11],[17,22,17,23],[18,4,18,11],[18,22,18,23],[26,4,26,10],[21,4,21,11],[21,22,21,23],[1,2,1,39],[2,2,2,39],[3,33,3,39],[6,20,6,23],[7,16,7,18],[7,19,7,20],[16,22,16,23],[11,4,11,10],[13,4,13,11],[13,17,13,18],[14,4,14,7],[15,4,15,11],[14,14,14,38]]}
[]
[]
[]
[null,null,null,null,null,null,null,null,null,null,null,null,null,null,null,null,null,null,null,null,null,null,null,null,null,null,null,null,null,null,null,null,null,{"$f":"TODAY()","v":"2018-10-04"}]
[]
[]
[null,null,null,null,null,null,null,null,null,null,null,null,null,"  ",null,null,null,null,null,null,"大使"]
[null,null,null,null,null,null,null,null,null,null,null,null,"        ",null,null,"     "]
[null,null,null,null,"　　　　　　　　　　　　",null,null,null,null,null,null,null,null,"　",null,null,null,null,null,null,"総領事"]
[]
[]
[]
[]
[null,null,null,null,"　　住　　　　　　　所",null,null,null,null,null,null,null,":",null,null,null,null,"－"]
[null,null,null,null,null,null,null,null,null,null,null,null,null,null,"省略"]
[null,null,null,null,"　　氏　　　　　　　名",null,null,null,null,null,null,null,":"]
[]
[null,null,null,null,"　　電　 話 　番　号",null,null,null,null,null,null,null,":",null,"　（　　　　　　　）",null,null,null,null,null,null,null,"－"]
[null,null,null,null,"　　F   A   X  番 号",null,null,null,null,null,null,null,":",null,"　（　　　　　　　）",null,null,null,null,null,null,null,"－"]
[]
[]
[null,null,null,null,"　　担当者所属先名",null,null,null,null,null,null,null,":",null,"　"]
[null,null,null,null,"　　担 当 者  氏  名",null,null,null,null,null,null,null,":",null,"　"]
[null,null,null,null,"　　担当者電話番号",null,null,null,null,null,null,null,":",null,"　（　　　　　　　）",null,null,null,null,null,null,null,"－"]
[null,null,null,null,"　　F   A   X  番  号",null,null,null,null,null,null,null,":",null,"　（　　　　　　　）",null,null,null,null,null,null,null,"－"]
[]
[]
[]
[]
[null,null,null,null,"　　国　　　　　　　籍",null,null,null,null,null,null,null,":",null,{"$f":"AO30","v":""},null,null,null,null,null,null,null,null,null,null,null,null,null,null,null,null,null,null,null,null,null,null,null,null,null,{"$f":"'Form1-1'!E14&'Form1-2'!E16","v":""}]
[null,null,null,null,"　　職　　　　　　　業",null,null,null,null,null,null,null,":",null,"大学生　"]
[null,null,null,null,"　　氏　　　　　　　名",null,null,null,null,null,null,null,":",null,null,null,null,null,null,null,null,null,null,null,null,null,null,null,null,null,null,null,null,null,null,null,null,null,null,null,{"$f":"'Form1-1'!BX10&'Form1-2'!BT12","v":"    "}]
[null,null,null,null,null,null,null,null,null,null,null,null,null,null,{"$f":"AO32","v":"    "},null,null,null,null,null,null,null,null,null,null,null,null,null,null,"(男　　　女　　　）",null,null,null,null,"　ほか",null,0,null,"名",null,{"$f":"TODAY()","v":"2018-10-04"}]
[null,null,null,null,"　　生　 年　 月　 日",null,null,null,null,null,null,null,":",null,"西暦",null,{"$f":"IF(NOT('Form1-1'!G16=\"Year\"),'Form1-1'!G16, IF(NOT('Form1-2'!G18=\"Year\"),'Form1-2'!G18,\"\"))","v":""},null,null,null,"年",null,{"$f":"IF(NOT('Form1-1'!E16=\"Month\"),'Form1-1'!E16, IF(NOT('Form1-2'!E18=\"Month\"),'Form1-2'!E18,\"\"))","v":""},null,null,"月",{"$f":"IF(NOT('Form1-1'!F16=\"Day\"),'Form1-1'!F16, IF(NOT('Form1-2'!F18=\"Day\"),'Form1-2'!F18,\"\"))","v":""},null,"日生",null,{"$f":"DATEDIF(AO34,AO33,\"Y\")","v":{"$error":"#VALUE!"}},null,null,"歳",null,null,null,null,null,null,{"$f":"Q34&\"/\"&W34&\"/\"&AA34","v":"//"}]

{"sheet":"Form1-5 SIT OFFICE USE ONLY","index":4,"n_rows":49,"n_cols":45,"rows_kept":49,"cut":false,"hidden":false,"merged":[[43,2,43,7],[43,9,43,12],[43,13,43,21],[43,26,43,29],[41,2,41,7],[41,26,41,29],[42,2,42,7],[42,9,42,12],[42,13,42,21],[42,26,42,29],[17,28,17,29],[40,9,40,21],[40,26,40,29],[35,26,35,29],[36,2,36,7],[36,9,36,12],[36,13,36,21],[36,26,36,29],[37,2,37,7],[37,9,37,21],[37,26,37,29],[39,1,39,19],[40,2,40,7],[35,2,35,7],[35,9,35,12],[35,13,35,21],[17,2,17,7],[20,2,20,5],[20,7,20,24],[21,2,21,5],[17,12,17,14],[17,17,17,20],[17,23,17,24],[13,2,13,7],[14,2,14,7],[34,2,34,7],[34,11,34,13],[34,25,34,26],[27,2,27,7],[28,1,28,37],[29,2,29,7],[30,2,30,5],[15,9,16,24],[31,2,31,7],[32,2,32,7],[15,2,15,7],[13,9,13,27],[14,9,14,27],[16,30,16,31],[8,14,8,17],[10,2,10,7],[12,2,12,37],[2,1,2,37],[3,1,3,37],[5,29,5,36],[6,14,6,17],[7,3,7,8],[7,9,7,11],[7,21,7,22]]}
[]
[]
[]
[null,"身元保証書"]
[]
[null,null,null,null,null,null,null,null,null,null,null,null,null,null,null,null,null,null,null,null,null,null,null,null,null,null,null,null,null,{"$f":"TODAY()","v":"2018-10-04"}]
[null,null,null,null,null,null,null,null,null,null,"  "," ",null,null,"　　大使 "]
[null,"　","在",null,null,null,null,null,null,"日本国",null,null,null,null,null,null,null,null,null,null,null," 殿"]
[null,null,"　　　　　　　　　　　　",null,null,null,null,null,null,null,"　",null,null,null,"総領事"]
[]
[null,null,"ビ ザ 申 請 人"]
[]
[null,null,"（氏名は必ず旅券上のアルファベット表記で記載してください。申請人が複数の場合には代表者の身分事項を下記に記入の上，申請人全員のリストを作成し，添付してください。)"]
[null,null,"　 国　　 　　　籍",null,null,null,null,null,":",{"$f":"'Form1-4 SIT OFFICE USE ONLY'!O30","v":""}]
[null,null,"　 職　　 　　　業",null,null,null,null,null,":","大学生"]
[null,null,"　 氏　　 　　　名",null,null,null,null,null,":",{"$f":"'Form1-4 SIT OFFICE USE ONLY'!O33","v":"    "}]
[null,null,null,null,null,null,null,null,null,null,null,null,null,null,null,null,null,null,null,null,null,null,null,null,null,"(男　　女　　）",null,null,null,null,"　ほか　",null,null,0,"名"]
[null,null,"　 生　年　 月　日",null,null,null,null,null,":","西暦",null,"　　　　　　　　　",{"$f":"'Form1-4 SIT OFFICE USE ONLY'!Q34","v":""},null,null,"年",null,{"$f":"'Form1-4 SIT OFFICE USE ONLY'!W34","v":""},null,null,null,"月",null,{"$f":"'Form1-4 SIT OFFICE USE ONLY'!AA34","v":""},null,"　日生",null,null,{"$f":"'Form1-4 SIT OFFICE USE ONLY'!AE34","v":{"$error":"#VALUE!"}},null,"歳"]
[]
[null,"　","上記の者の本邦入国に関し，下記の事項について保証します。 "]
[]
[null,null,"　1.  滞在費"]
[null,null,"　2.  帰国旅費"]
[null,null,"　3.  法令の遵守"]
[]
[null,null,"上記のとおり相違ありません。"]
[]
[null,null,"身 元 保 証 人"]
[]
[null,null,"住　　 　　　所",null,null,null,null,null,":"," 〒 135 －　8548"]
[null,null,null,null,null,null,null,null,null,"東京都江東区豊洲3-7-5"]
[null,null," 職　　 　　　業",null,null,null,null,null,":","芝浦工業大学　国際部　部長"]
[null,null," 氏　　 　　　名",null,null,null,null,null,":","       (注)"]
[null,null,null,null,null,null,null,null,"          杉山　修"]
[null,null,"　 生　年　 月　日",null,null,null,null,null,":","西暦",null,1971,null,null,null,"年",null,7,null,null,null,"月",21,null,null,"日生",null,46,{"$f":"DATEDIF(AS35,TODAY(),\"y\")","v":47},null,"歳",null,null,null,null,null,null,null,null,null,null,null,null,null,"1971-07-21"]
[null,null,"　 電　話　 番　号",null,null,null,null,null,":","（03　　　　　）",null,null,null,"5859　　　　　　－　7140",null,null,null,null,null,null,null,null,null,null,null,null,"（内線）9815"]
[null,null," Ｆ  A  X   番 号",null,null,null,null,null,":","（03　　　　　）",null,null,null,"5859　　　　　　－　7141"]
[null,null,"　 申請人との関係",null,null,null,null,null,":","プログラム実施における受入機関"]
[]
[null,"　　【会社・団体が招へいする場合は以下も記入してください】"]
[null,null,"担当者所属先名",null,null,null,null,null,":","芝浦工業大学　国際部"]
[null,null,"担 当 者 氏 名",null,null,null,null,null,":"]
[null,null,"担当者電話番号",null,null,null,null,null,":","（03　　　　　）",null,null,null,"5859　　　　　　－　7140",null,null,null,null,null,null,null,null,null,null,null,null,"（内線）"]
[null,null,"Ｆ  A  X   番 号",null,null,null,null,null,":","（03　　　　　）",null,null,null,"5859　　　　　　－　7141"]
[]
[null,"(注)会社・団体等が招へいする場合",null,null,null,null,null,null,null,null,null,":","会社・団体名及び役職名を記入の上，代表者印，役職印又は社印を押印してくだ"]
[null,null,null,null,null,null,null,null,null,null,null,null,"さい(私印不可)。押印が困難な場合は所属機関の然るべき役職の方が署名して"]
[null,null,null,null,null,null,null,null,null,null,null,null,"ください。"]
[null," 　外国籍者等で印鑑がない場合",null,null,null,null,null,null,null,null,null,":","署名してください。"]

{"sheet":"Form1-6 SIT OFFICE USE ONLY","index":5,"n_rows":11,"n_cols":9,"rows_kept":11,"cut":false,"hidden":false,"merged":[[27,0,27,1],[28,0,28,1],[21,0,21,1],[22,0,22,1],[23,0,23,1],[24,0,24,1],[25,0,25,1],[26,0,26,1],[20,0,20,1],[9,0,9,1],[10,0,10,1],[11,0,11,1],[12,0,12,1],[13,0,13,1],[14,0,14,1],[15,0,15,1],[16,0,16,1],[17,0,17,1],[18,0,18,1],[19,0,19,1],[8,0,8,1],[1,0,1,4],[2,0,2,4],[5,0,5,1],[6,0,6,1],[7,0,7,1],[3,1,3,2]]}
[]
["滞在予定表"]
[{"$f":"TODAY()","v":"2018-10-04"}]
["査証申請人                                ",{"$f":"'Form1-5 SIT OFFICE USE ONLY'!J16","v":"    "},null,"ほか    名の滞在予定は次のとおりです。"]
[]
["年  月  日",null,"行  動  予  定","連  絡  先","宿  泊  予  定  先"]
[{"$f":"A8-1","v":{"$error":"#VALUE!"}},null,"来日","芝浦工業大学国際部\n03-5859-7140","都内ゲストハウス",{"$f":"IF(NOT(ISERROR('Form1-1'!F45)),'Form1-1'!F45, IF(NOT(ISERROR('Form1-2'!F46)),'Form1-2'!F46,\"\"))","v":""}]
[{"$f":"F7","v":""},null,"オリエンテーション","芝浦工業大学国際部\n03-5859-7140","都内ゲストハウス"]
[{"$f":"A8+1","v":{"$error":"#VALUE!"}},null,"プログラム開始","芝浦工業大学国際部\n03-5859-7140","都内ゲストハウス"]
[{"$f":"I10","v":"//"},null,"プログラム終了","芝浦工業大学国際部\n03-5859-7140","都内ゲストハウス",{"$f":"IF(NOT('Form1-1'!I47=\"Year\"),'Form1-1'!I47, IF(NOT('Form1-2'!I48=\"Year\"),'Form1-2'!I48,\"\"))","v":""},{"$f":"IF(NOT('Form1-1'!F47=\"Month\"),'Form1-1'!F47, IF(NOT('Form1-2'!F48=\"Month\"),'Form1-2'!F48,\"\"))","v":""},{"$f":"IF(NOT('Form1-1'!G47=\"Day\"),'Form1-1'!G47, IF(NOT('Form1-2'!G48=\"Day\"),'Form1-2'!G48,\"\"))","v":""},{"$f":"F10&\"/\"&G10&\"/\"&H10","v":"//"}]
[{"$f":"A10+1","v":{"$error":"#VALUE!"}},null,"帰国","芝浦工業大学国際部\n03-5859-7140","都内ゲストハウス"]